[Event "Titled Tuesday Blitz September 21 2021"]
[White "Tarigan, Gilbert Elroy"]
[Black "Vusatiuk, Vladimir"]
[WhiteFideId "7108133"]
[BlackFideId "14118610"]
[WhiteElo "1908"]
[BlackElo "2167"]
[Result "1-0"]
[Round "05"]
[TimeControl "180+1"]
[Date "2021.09.21"]
[WhiteClock "0:00:07"]
[BlackClock "0:00:02"]

1. e4 {[%clk 0:02:54]}  e6 {[%clk 0:03:00]} 2. Ke2 {[%clk 0:02:51]}  d5 {[%clk 0:02:49]} 3. d3 {[%clk 0:02:50]}  Nf6 {[%clk 0:02:48]} 4. Nd2 {[%clk 0:02:47]}  c5 {[%clk 0:02:47]} 5. Ngf3 {[%clk 0:02:44]}  Nc6 {[%clk 0:02:47]} 6. g3 {[%clk 0:02:43]}  b6 {[%clk 0:02:38]} 7. Bg2 {[%clk 0:02:39]}  dxe4 {[%clk 0:02:37]} 8. Nxe4 {[%clk 0:02:39]}  Nxe4 {[%clk 0:02:37]} 9. dxe4 {[%clk 0:02:40]}  Ba6+ {[%clk 0:02:37]} 10. Ke3 {[%clk 0:02:40]}  Qc7 {[%clk 0:02:33]} 11. c3 {[%clk 0:02:31]}  Rd8 {[%clk 0:02:24]} 12. Qa4 {[%clk 0:02:13]}  Qb7 {[%clk 0:01:27]} 13. Bf1 {[%clk 0:01:54]}  c4 {[%clk 0:01:14]} 14. b4 {[%clk 0:01:25]}  b5 {[%clk 0:00:39]} 15. Qc2 {[%clk 0:01:24]}  Nxb4 {[%clk 0:00:27]} 16. cxb4 {[%clk 0:01:20]}  Bxb4 {[%clk 0:00:28]} 17. Bb2 {[%clk 0:00:38]}  c3 {[%clk 0:00:26]} 18. Bc1 {[%clk 0:00:24]}  O-O {[%clk 0:00:13]} 19. Kf4 {[%clk 0:00:23]}  e5+ {[%clk 0:00:11]} 20. Kg4 {[%clk 0:00:23]}  Qc8+ {[%clk 0:00:11]} 21. Kh4 {[%clk 0:00:12]}  Be7+ {[%clk 0:00:11]} 22. Bg5 {[%clk 0:00:09]}  Rd6 {[%clk 0:00:04]} 23. g4 {[%clk 0:00:06]}  Bxg5+ {[%clk 0:00:02]} 24. Nxg5 {[%clk 0:00:07]} 1-0


[Site "https://www.chess.com"]

[Event "Titled Tuesday Blitz September 21 2021"]
[White "Tsaruk, Maksim"]
[Black "Zhigalko, Sergei"]
[WhiteFideId "13511173"]
[BlackFideId "13502956"]
[WhiteElo "2195"]
[BlackElo "2662"]
[Result "1-0"]
[Round "05"]
[TimeControl "180+1"]
[Date "2021.09.21"]
[WhiteClock "0:00:02"]
[BlackClock "0:00:01"]

1. e4 {[%clk 0:02:41]}  c5 {[%clk 0:02:59]} 2. Nf3 {[%clk 0:02:42]}  Nc6 {[%clk 0:03:00]} 3. d4 {[%clk 0:02:42]}  cxd4 {[%clk 0:03:00]} 4. Nxd4 {[%clk 0:02:43]}  Nf6 {[%clk 0:03:01]} 5. Nc3 {[%clk 0:02:43]}  e5 {[%clk 0:03:01]} 6. Ndb5 {[%clk 0:02:44]}  d6 {[%clk 0:03:02]} 7. Bg5 {[%clk 0:02:43]}  a6 {[%clk 0:03:02]} 8. Na3 {[%clk 0:02:44]}  b5 {[%clk 0:03:02]} 9. Nd5 {[%clk 0:02:44]}  Be7 {[%clk 0:03:02]} 10. Bxf6 {[%clk 0:02:45]}  Bxf6 {[%clk 0:03:03]} 11. c3 {[%clk 0:02:45]}  Bg5 {[%clk 0:03:03]} 12. Nc2 {[%clk 0:02:46]}  Ne7 {[%clk 0:03:01]} 13. a4 {[%clk 0:02:23]}  bxa4 {[%clk 0:03:00]} 14. Rxa4 {[%clk 0:02:13]}  O-O {[%clk 0:03:00]} 15. Bc4 {[%clk 0:02:12]}  a5 {[%clk 0:02:56]} 16. O-O {[%clk 0:02:10]}  Bd7 {[%clk 0:02:51]} 17. Nxe7+ {[%clk 0:02:04]}  Qxe7 {[%clk 0:02:47]} 18. Ra2 {[%clk 0:02:04]}  Be6 {[%clk 0:02:46]} 19. Bd5 {[%clk 0:02:02]}  Rab8 {[%clk 0:02:46]} 20. Qa1 {[%clk 0:00:36]}  Bxd5 {[%clk 0:02:17]} 21. exd5 {[%clk 0:00:37]}  Qb7 {[%clk 0:02:17]} 22. Rxa5 {[%clk 0:00:37]}  Qxb2 {[%clk 0:02:18]} 23. Nb4 {[%clk 0:00:37]}  Qxa1 {[%clk 0:02:04]} 24. Rfxa1 {[%clk 0:00:38]}  Bd2 {[%clk 0:02:05]} 25. R5a3 {[%clk 0:00:17]}  Bxc3 {[%clk 0:01:59]} 26. Rxc3 {[%clk 0:00:18]}  Rxb4 {[%clk 0:02:00]} 27. Rc6 {[%clk 0:00:18]}  g6 {[%clk 0:01:01]} 28. Rxd6 {[%clk 0:00:16]}  Kg7 {[%clk 0:01:02]} 29. g3 {[%clk 0:00:16]}  Rd4 {[%clk 0:00:55]} 30. Rd7 {[%clk 0:00:16]}  Rd2 {[%clk 0:00:48]} 31. h4 {[%clk 0:00:14]}  h5 {[%clk 0:00:35]} 32. Ra3 {[%clk 0:00:13]}  e4 {[%clk 0:00:18]} 33. Ra4 {[%clk 0:00:09]}  e3 {[%clk 0:00:02]} 34. fxe3 {[%clk 0:00:08]}  Re2 {[%clk 0:00:03]} 35. Re7 {[%clk 0:00:04]}  Rb8 {[%clk 0:00:02]} 36. Rf4 {[%clk 0:00:02]}  Rf8 {[%clk 0:00:03]} 37. d6 {[%clk 0:00:02]}  Rd2 {[%clk 0:00:03]} 38. d7 {[%clk 0:00:03]}  Kg8 {[%clk 0:00:03]} 39. e4 {[%clk 0:00:02]}  Rd8 {[%clk 0:00:02]} 40. Re8+ {[%clk 0:00:01]}  Kg7 {[%clk 0:00:01]} 41. Rxd8 {[%clk 0:00:02]} 1-0


[Site "https://www.chess.com"]

[Event "Titled Tuesday Blitz September 21 2021"]
[White "Wagner, Dennis"]
[Black "Sharma, Dinesh K."]
[WhiteFideId "24650684"]
[BlackFideId "5004110"]
[WhiteElo "2355"]
[BlackElo "2392"]
[Result "1-0"]
[Round "05"]
[TimeControl "180+1"]
[Date "2021.09.21"]
[WhiteClock "0:00:50"]
[BlackClock "0:00:40"]

1. d4 {[%clk 0:03:00]}  d5 {[%clk 0:02:57]} 2. Nf3 {[%clk 0:03:00]}  c6 {[%clk 0:02:57]} 3. c4 {[%clk 0:02:59]}  Nf6 {[%clk 0:02:57]} 4. e3 {[%clk 0:02:55]}  Bf5 {[%clk 0:02:56]} 5. Nc3 {[%clk 0:02:53]}  e6 {[%clk 0:02:56]} 6. Nh4 {[%clk 0:02:53]}  Be4 {[%clk 0:02:55]} 7. f3 {[%clk 0:02:53]}  Bg6 {[%clk 0:02:56]} 8. Qb3 {[%clk 0:02:53]}  Qb6 {[%clk 0:02:54]} 9. Nxg6 {[%clk 0:02:51]}  hxg6 {[%clk 0:02:53]} 10. Bd2 {[%clk 0:02:51]}  Nbd7 {[%clk 0:02:50]} 11. O-O-O {[%clk 0:02:44]}  Qxb3 {[%clk 0:02:46]} 12. axb3 {[%clk 0:02:43]}  a6 {[%clk 0:02:41]} 13. Be2 {[%clk 0:02:19]}  Bd6 {[%clk 0:02:28]} 14. g3 {[%clk 0:02:18]}  O-O-O {[%clk 0:02:26]} 15. Kc2 {[%clk 0:01:53]}  Rh3 {[%clk 0:02:18]} 16. Bf1 {[%clk 0:01:42]}  Rh7 {[%clk 0:02:14]} 17. Ne2 {[%clk 0:01:27]}  Rdh8 {[%clk 0:02:11]} 18. h3 {[%clk 0:01:28]}  e5 {[%clk 0:01:18]} 19. Bg2 {[%clk 0:01:10]}  exd4 {[%clk 0:01:15]} 20. exd4 {[%clk 0:01:08]}  Nf8 {[%clk 0:01:11]} 21. h4 {[%clk 0:00:56]}  Ne6 {[%clk 0:01:08]} 22. Bh3 {[%clk 0:00:55]}  Kb8 {[%clk 0:01:05]} 23. Bxe6 {[%clk 0:00:54]}  fxe6 {[%clk 0:01:04]} 24. Bf4 {[%clk 0:00:54]}  Kc7 {[%clk 0:01:02]} 25. c5 {[%clk 0:00:52]}  Bxf4 {[%clk 0:01:00]} 26. Nxf4 {[%clk 0:00:53]}  Kd7 {[%clk 0:00:58]} 27. Nxg6 {[%clk 0:00:53]}  Rg8 {[%clk 0:00:57]} 28. g4 {[%clk 0:00:51]}  Rh6 {[%clk 0:00:48]} 29. h5 {[%clk 0:00:51]}  Nh7 {[%clk 0:00:48]} 30. f4 {[%clk 0:00:48]}  Nf8 {[%clk 0:00:48]} 31. Ne5+ {[%clk 0:00:49]}  Kc7 {[%clk 0:00:45]} 32. g5 {[%clk 0:00:49]}  Rh7 {[%clk 0:00:40]} 33. g6 {[%clk 0:00:49]}  Rh6 {[%clk 0:00:40]} 34. Nf7 {[%clk 0:00:50]} 1-0


[Site "https://www.chess.com"]

[Event "Titled Tuesday Blitz September 21 2021"]
[White "Zarubitski, Viachaslau"]
[Black "Jobava, Baadur"]
[WhiteFideId "13509373"]
[BlackFideId "13601520"]
[WhiteElo "2315"]
[BlackElo "2731"]
[Result "1-0"]
[Round "05"]
[TimeControl "180+1"]
[Date "2021.09.21"]
[WhiteClock "0:00:10"]
[BlackClock "0:01:43"]

1. e4 {[%clk 0:02:54]}  e5 {[%clk 0:02:59]} 2. Nf3 {[%clk 0:02:53]}  Nf6 {[%clk 0:03:00]} 3. Nxe5 {[%clk 0:02:52]}  d6 {[%clk 0:03:00]} 4. Nf3 {[%clk 0:02:52]}  Nxe4 {[%clk 0:03:00]} 5. Nc3 {[%clk 0:02:52]}  Nxc3 {[%clk 0:03:00]} 6. dxc3 {[%clk 0:02:53]}  Be7 {[%clk 0:03:01]} 7. Be3 {[%clk 0:02:53]}  Nc6 {[%clk 0:03:02]} 8. Qd2 {[%clk 0:02:53]}  Bf5 {[%clk 0:03:02]} 9. O-O-O {[%clk 0:02:52]}  O-O {[%clk 0:03:03]} 10. Kb1 {[%clk 0:02:44]}  Re8 {[%clk 0:03:03]} 11. Rg1 {[%clk 0:02:36]}  Qd7 {[%clk 0:03:03]} 12. h3 {[%clk 0:02:35]}  a5 {[%clk 0:02:57]} 13. g4 {[%clk 0:02:34]}  Be4 {[%clk 0:02:58]} 14. Bg2 {[%clk 0:02:25]}  a4 {[%clk 0:02:57]} 15. a3 {[%clk 0:02:17]}  Na5 {[%clk 0:02:57]} 16. Ne5 {[%clk 0:02:00]}  Qb5 {[%clk 0:02:49]} 17. Bxe4 {[%clk 0:01:57]}  Qxe5 {[%clk 0:02:45]} 18. Qd5 {[%clk 0:01:54]}  Qxd5 {[%clk 0:02:44]} 19. Bxd5 {[%clk 0:01:45]}  c6 {[%clk 0:02:44]} 20. Bg2 {[%clk 0:01:39]}  d5 {[%clk 0:02:45]} 21. Rge1 {[%clk 0:01:31]}  Nc4 {[%clk 0:02:41]} 22. Bd4 {[%clk 0:01:28]}  Bg5 {[%clk 0:02:41]} 23. Bf1 {[%clk 0:01:10]}  Nd2+ {[%clk 0:02:40]} 24. Ka2 {[%clk 0:01:09]}  Nxf1 {[%clk 0:02:39]} 25. Rxf1 {[%clk 0:01:09]}  Re2 {[%clk 0:02:39]} 26. f4 {[%clk 0:01:07]}  Bh4 {[%clk 0:02:39]} 27. Kb1 {[%clk 0:01:04]}  Rae8 {[%clk 0:02:38]} 28. Rf3 {[%clk 0:00:38]}  g6 {[%clk 0:02:37]} 29. f5 {[%clk 0:00:35]}  g5 {[%clk 0:02:25]} 30. Bf6 {[%clk 0:00:32]}  R8e4 {[%clk 0:02:18]} 31. Rd4 {[%clk 0:00:28]}  b5 {[%clk 0:02:17]} 32. Rfd3 {[%clk 0:00:24]}  Re8 {[%clk 0:02:04]} 33. Rd2 {[%clk 0:00:21]}  R2e3 {[%clk 0:02:02]} 34. R4d3 {[%clk 0:00:20]}  R3e4 {[%clk 0:02:02]} 35. Rd4 {[%clk 0:00:20]}  Re1+ {[%clk 0:01:58]} 36. Rd1 {[%clk 0:00:20]}  h5 {[%clk 0:01:55]} 37. Ka2 {[%clk 0:00:16]}  Kh7 {[%clk 0:01:54]} 38. Rxe1 {[%clk 0:00:10]}  Rxe1 {[%clk 0:01:55]} 39. b3 {[%clk 0:00:09]}  axb3+ {[%clk 0:01:56]} 40. Kxb3 {[%clk 0:00:09]}  Rb1+ {[%clk 0:01:54]} 41. Ka2 {[%clk 0:00:09]}  Rh1 {[%clk 0:01:55]} 42. Rd3 {[%clk 0:00:09]}  hxg4 {[%clk 0:01:46]} 43. hxg4 {[%clk 0:00:09]}  Rg1 {[%clk 0:01:46]} 44. Re3 {[%clk 0:00:10]}  Rxg4 {[%clk 0:01:43]} 45. Re8 {[%clk 0:00:10]} 1-0


[Site "https://www.chess.com"]

[Event "Titled Tuesday Blitz September 21 2021"]
[White "Aradhya, Garg"]
[Black "Krasilnikov, Evgeni"]
[WhiteFideId "25006746"]
[BlackFideId "4139739"]
[WhiteElo "2146"]
[BlackElo "2295"]
[Result "1-0"]
[Round "06"]
[TimeControl "180+1"]
[Date "2021.09.21"]
[WhiteClock "0:00:12"]
[BlackClock "0:00:04"]

1. d4 {[%clk 0:03:00]}  Nf6 {[%clk 0:02:58]} 2. c4 {[%clk 0:03:01]}  g6 {[%clk 0:02:59]} 3. g3 {[%clk 0:03:01]}  Bg7 {[%clk 0:02:59]} 4. Bg2 {[%clk 0:03:01]}  O-O {[%clk 0:03:00]} 5. Nc3 {[%clk 0:03:02]}  d6 {[%clk 0:03:00]} 6. Nf3 {[%clk 0:03:03]}  c6 {[%clk 0:03:00]} 7. e4 {[%clk 0:02:53]}  Qa5 {[%clk 0:02:57]} 8. O-O {[%clk 0:02:52]}  Qh5 {[%clk 0:02:45]} 9. Ng5 {[%clk 0:02:51]}  Qxd1 {[%clk 0:02:44]} 10. Rxd1 {[%clk 0:02:51]}  h6 {[%clk 0:02:39]} 11. Nh3 {[%clk 0:02:42]}  e5 {[%clk 0:02:30]} 12. d5 {[%clk 0:02:25]}  c5 {[%clk 0:02:30]} 13. f3 {[%clk 0:02:24]}  Ne8 {[%clk 0:02:23]} 14. a3 {[%clk 0:02:22]}  f5 {[%clk 0:02:15]} 15. b4 {[%clk 0:02:22]}  b6 {[%clk 0:02:07]} 16. Rb1 {[%clk 0:02:19]}  Na6 {[%clk 0:01:58]} 17. Nf2 {[%clk 0:02:12]}  Bd7 {[%clk 0:01:57]} 18. b5 {[%clk 0:01:36]}  Nac7 {[%clk 0:01:47]} 19. a4 {[%clk 0:01:36]}  a5 {[%clk 0:01:29]} 20. bxa6 {[%clk 0:01:07]}  Rxa6 {[%clk 0:01:29]} 21. Rd2 {[%clk 0:01:07]}  Nf6 {[%clk 0:01:26]} 22. Rdb2 {[%clk 0:01:07]}  Rb8 {[%clk 0:01:09]} 23. a5 {[%clk 0:01:06]}  Na8 {[%clk 0:01:05]} 24. axb6 {[%clk 0:00:38]}  Raxb6 {[%clk 0:01:04]} 25. Bf1 {[%clk 0:00:37]}  Rxb2 {[%clk 0:01:01]} 26. Rxb2 {[%clk 0:00:37]}  Rxb2 {[%clk 0:01:01]} 27. Bxb2 {[%clk 0:00:38]}  Nb6 {[%clk 0:01:00]} 28. Bd3 {[%clk 0:00:37]}  Kf7 {[%clk 0:00:50]} 29. Kf1 {[%clk 0:00:37]}  fxe4 {[%clk 0:00:33]} 30. Nfxe4 {[%clk 0:00:33]}  Nxe4 {[%clk 0:00:33]} 31. Nxe4 {[%clk 0:00:33]}  Bf8 {[%clk 0:00:33]} 32. Bc1 {[%clk 0:00:25]}  Bf5 {[%clk 0:00:32]} 33. Ke2 {[%clk 0:00:20]}  Bxe4 {[%clk 0:00:31]} 34. fxe4 {[%clk 0:00:20]}  h5 {[%clk 0:00:28]} 35. Bd2 {[%clk 0:00:20]}  Be7 {[%clk 0:00:27]} 36. Ba5 {[%clk 0:00:19]}  Nd7 {[%clk 0:00:26]} 37. Kf3 {[%clk 0:00:19]}  Bg5 {[%clk 0:00:24]} 38. Bf1 {[%clk 0:00:18]}  Bf6 {[%clk 0:00:22]} 39. Bh3 {[%clk 0:00:18]}  Nf8 {[%clk 0:00:20]} 40. Bc7 {[%clk 0:00:17]}  Be7 {[%clk 0:00:20]} 41. Ke2 {[%clk 0:00:17]}  Ke8 {[%clk 0:00:19]} 42. Kd3 {[%clk 0:00:17]}  Nd7 {[%clk 0:00:19]} 43. Be6 {[%clk 0:00:10]}  Nf6 {[%clk 0:00:18]} 44. h3 {[%clk 0:00:11]}  Nd7 {[%clk 0:00:18]} 45. Kc3 {[%clk 0:00:10]}  Nf6 {[%clk 0:00:17]} 46. Kd3 {[%clk 0:00:10]}  Nd7 {[%clk 0:00:17]} 47. Ba5 {[%clk 0:00:10]}  Nf6 {[%clk 0:00:17]} 48. Bd2 {[%clk 0:00:10]}  Nd7 {[%clk 0:00:16]} 49. g4 {[%clk 0:00:10]}  hxg4 {[%clk 0:00:16]} 50. hxg4 {[%clk 0:00:11]}  Nf6 {[%clk 0:00:16]} 51. Be3 {[%clk 0:00:11]}  Nd7 {[%clk 0:00:15]} 52. Bxd7+ {[%clk 0:00:10]}  Kxd7 {[%clk 0:00:15]} 53. Kc3 {[%clk 0:00:11]}  Kc7 {[%clk 0:00:15]} 54. Kb3 {[%clk 0:00:11]}  Kb6 {[%clk 0:00:15]} 55. Ka4 {[%clk 0:00:12]}  Ka6 {[%clk 0:00:15]} 56. Bd2 {[%clk 0:00:12]}  Bf8 {[%clk 0:00:15]} 57. Bg5 {[%clk 0:00:11]}  Kb6 {[%clk 0:00:13]} 58. Bd8+ {[%clk 0:00:11]}  Ka6 {[%clk 0:00:13]} 59. g5 {[%clk 0:00:12]}  Bg7 {[%clk 0:00:11]} 60. Bf6 {[%clk 0:00:11]}  Bf8 {[%clk 0:00:10]} 61. Bd8 {[%clk 0:00:12]}  Bg7 {[%clk 0:00:09]} 62. Be7 {[%clk 0:00:12]}  Kb6 {[%clk 0:00:08]} 63. Bxd6 {[%clk 0:00:12]}  Bh8 {[%clk 0:00:08]} 64. Be7 {[%clk 0:00:12]}  Bg7 {[%clk 0:00:08]} 65. Bd6 {[%clk 0:00:12]}  Bh8 {[%clk 0:00:06]} 66. Bf8 {[%clk 0:00:12]}  Kc7 {[%clk 0:00:04]} 67. Bxc5 {[%clk 0:00:12]} 1-0


[Site "https://www.chess.com"]

[Event "Titled Tuesday Blitz September 21 2021"]
[White "Belenkaya, Dina"]
[Black "Tomb, Maroun"]
[WhiteFideId "24142654"]
[BlackFideId "5300398"]
[WhiteElo "2247"]
[BlackElo "2590"]
[Result "1-0"]
[Round "06"]
[TimeControl "180+1"]
[Date "2021.09.21"]
[WhiteClock "0:00:17"]
[BlackClock "0:00:04"]

1. Nf3 {[%clk 0:03:00]}  d6 {[%clk 0:02:55]} 2. g3 {[%clk 0:03:00]}  Nf6 {[%clk 0:02:55]} 3. Bg2 {[%clk 0:02:56]}  e5 {[%clk 0:02:55]} 4. d3 {[%clk 0:02:55]}  Nbd7 {[%clk 0:02:56]} 5. Nbd2 {[%clk 0:02:55]}  Be7 {[%clk 0:02:53]} 6. O-O {[%clk 0:02:52]}  c6 {[%clk 0:02:53]} 7. e4 {[%clk 0:02:49]}  O-O {[%clk 0:02:52]} 8. a4 {[%clk 0:02:45]}  b6 {[%clk 0:02:45]} 9. Nc4 {[%clk 0:02:44]}  Qc7 {[%clk 0:02:43]} 10. Ne3 {[%clk 0:02:42]}  Re8 {[%clk 0:02:43]} 11. Nf5 {[%clk 0:02:42]}  Bf8 {[%clk 0:02:42]} 12. N3h4 {[%clk 0:02:40]}  d5 {[%clk 0:02:38]} 13. Qe2 {[%clk 0:02:21]}  Nc5 {[%clk 0:02:31]} 14. Bg5 {[%clk 0:02:14]}  dxe4 {[%clk 0:01:58]} 15. Bxf6 {[%clk 0:02:08]}  gxf6 {[%clk 0:01:46]} 16. dxe4 {[%clk 0:02:08]}  Kh8 {[%clk 0:01:41]} 17. Qh5 {[%clk 0:02:02]}  Be6 {[%clk 0:01:29]} 18. Rfe1 {[%clk 0:01:05]}  a5 {[%clk 0:01:26]} 19. g4 {[%clk 0:01:04]}  Be7 {[%clk 0:01:26]} 20. Re3 {[%clk 0:01:04]}  Rg8 {[%clk 0:01:25]} 21. Rh3 {[%clk 0:01:02]}  Bf8 {[%clk 0:01:11]} 22. Nf3 {[%clk 0:01:00]}  Bxf5 {[%clk 0:01:10]} 23. exf5 {[%clk 0:00:50]}  Rg7 {[%clk 0:00:58]} 24. g5 {[%clk 0:00:51]}  fxg5 {[%clk 0:00:58]} 25. f6 {[%clk 0:00:51]}  g4 {[%clk 0:00:18]} 26. fxg7+ {[%clk 0:00:49]}  Kxg7 {[%clk 0:00:19]} 27. Qxh7+ {[%clk 0:00:50]}  Kf6 {[%clk 0:00:20]} 28. Qh4+ {[%clk 0:00:49]}  Ke6 {[%clk 0:00:18]} 29. Qxg4+ {[%clk 0:00:50]}  Ke7 {[%clk 0:00:17]} 30. Qh4+ {[%clk 0:00:49]}  Ke8 {[%clk 0:00:17]} 31. Ng5 {[%clk 0:00:47]}  Qe7 {[%clk 0:00:16]} 32. Re1 {[%clk 0:00:42]}  Rc8 {[%clk 0:00:14]} 33. Rhe3 {[%clk 0:00:40]}  f6 {[%clk 0:00:13]} 34. Qh6 {[%clk 0:00:39]}  Kd8 {[%clk 0:00:14]} 35. Qh5 {[%clk 0:00:38]}  Kc7 {[%clk 0:00:11]} 36. Ne4 {[%clk 0:00:35]}  Ne6 {[%clk 0:00:10]} 37. Ng3 {[%clk 0:00:26]}  Nf4 {[%clk 0:00:09]} 38. Qf5 {[%clk 0:00:26]}  Qd6 {[%clk 0:00:06]} 39. Rc3 {[%clk 0:00:19]}  c5 {[%clk 0:00:05]} 40. Qe4 {[%clk 0:00:19]}  Kd8 {[%clk 0:00:04]} 41. Qb7 {[%clk 0:00:18]}  Rc7 {[%clk 0:00:03]} 42. Qb8+ {[%clk 0:00:18]}  Ke7 {[%clk 0:00:04]} 43. Nf5+ {[%clk 0:00:17]} 1-0


[Site "https://www.chess.com"]

[Event "Titled Tuesday Blitz September 21 2021"]
[White "Bluebaum, Matthias"]
[Black "Moskalenko, Alexander"]
[WhiteFideId "24651516"]
[BlackFideId "4155351"]
[WhiteElo "2681"]
[BlackElo "2515"]
[Result "0-1"]
[Round "06"]
[TimeControl "180+1"]
[Date "2021.09.21"]
[WhiteClock "0:00:11"]
[BlackClock "0:00:10"]

1. d4 {[%clk 0:03:00]}  g6 {[%clk 0:02:01]} 2. c4 {[%clk 0:03:00]}  Bg7 {[%clk 0:02:01]} 3. e4 {[%clk 0:03:01]}  d6 {[%clk 0:02:00]} 4. Nc3 {[%clk 0:03:01]}  Nc6 {[%clk 0:02:01]} 5. d5 {[%clk 0:02:59]}  Nd4 {[%clk 0:02:01]} 6. Be3 {[%clk 0:02:59]}  c5 {[%clk 0:02:02]} 7. Nge2 {[%clk 0:03:00]}  Qb6 {[%clk 0:02:01]} 8. Na4 {[%clk 0:02:59]}  Qa5+ {[%clk 0:02:00]} 9. Bd2 {[%clk 0:03:00]}  Qc7 {[%clk 0:01:59]} 10. Bc3 {[%clk 0:02:56]}  Bd7 {[%clk 0:01:44]} 11. Nxd4 {[%clk 0:02:54]}  cxd4 {[%clk 0:01:38]} 12. Bxd4 {[%clk 0:02:54]}  Nf6 {[%clk 0:01:37]} 13. Nc3 {[%clk 0:02:54]}  O-O {[%clk 0:01:37]} 14. Be2 {[%clk 0:02:52]}  e5 {[%clk 0:01:30]} 15. dxe6 {[%clk 0:02:46]}  Bxe6 {[%clk 0:01:30]} 16. b3 {[%clk 0:02:45]}  Rfe8 {[%clk 0:01:10]} 17. O-O {[%clk 0:02:39]}  a6 {[%clk 0:01:10]} 18. Rc1 {[%clk 0:02:36]}  Rad8 {[%clk 0:00:59]} 19. Bf3 {[%clk 0:02:23]}  h5 {[%clk 0:00:57]} 20. Re1 {[%clk 0:02:20]}  Qe7 {[%clk 0:00:56]} 21. Qd2 {[%clk 0:02:07]}  Kh7 {[%clk 0:00:54]} 22. Rcd1 {[%clk 0:02:04]}  Bh6 {[%clk 0:00:52]} 23. Qb2 {[%clk 0:02:04]}  Nd7 {[%clk 0:00:51]} 24. Re2 {[%clk 0:01:55]}  Ne5 {[%clk 0:00:51]} 25. Bxe5 {[%clk 0:01:40]}  dxe5 {[%clk 0:00:52]} 26. Nd5 {[%clk 0:01:41]}  Qg5 {[%clk 0:00:49]} 27. Red2 {[%clk 0:01:10]}  Rc8 {[%clk 0:00:49]} 28. Rd3 {[%clk 0:01:05]}  h4 {[%clk 0:00:48]} 29. Qe2 {[%clk 0:01:03]}  h3 {[%clk 0:00:45]} 30. g3 {[%clk 0:01:00]}  b5 {[%clk 0:00:41]} 31. cxb5 {[%clk 0:00:47]}  axb5 {[%clk 0:00:41]} 32. Bg4 {[%clk 0:00:34]}  Bxg4 {[%clk 0:00:30]} 33. Qxg4 {[%clk 0:00:34]}  Qxg4 {[%clk 0:00:30]} 34. Nf6+ {[%clk 0:00:33]}  Kg7 {[%clk 0:00:31]} 35. Nxg4 {[%clk 0:00:34]}  Rc2 {[%clk 0:00:31]} 36. Nxh6 {[%clk 0:00:20]}  Kxh6 {[%clk 0:00:32]} 37. R3d2 {[%clk 0:00:20]}  Rec8 {[%clk 0:00:19]} 38. f3 {[%clk 0:00:21]}  R8c3 {[%clk 0:00:14]} 39. Kf2 {[%clk 0:00:21]}  Kg5 {[%clk 0:00:14]} 40. Ke2 {[%clk 0:00:20]}  f5 {[%clk 0:00:14]} 41. Rxc2 {[%clk 0:00:13]}  Rxc2+ {[%clk 0:00:15]} 42. Rd2 {[%clk 0:00:14]}  Rc1 {[%clk 0:00:15]} 43. Ke3 {[%clk 0:00:08]}  Re1+ {[%clk 0:00:12]} 44. Kd3 {[%clk 0:00:07]}  Rf1 {[%clk 0:00:12]} 45. Ke2 {[%clk 0:00:06]}  Rh1 {[%clk 0:00:11]} 46. Ke3 {[%clk 0:00:06]}  b4 {[%clk 0:00:11]} 47. exf5 {[%clk 0:00:04]}  gxf5 {[%clk 0:00:12]} 48. f4+ {[%clk 0:00:04]}  exf4+ {[%clk 0:00:12]} 49. gxf4+ {[%clk 0:00:05]}  Kg4 {[%clk 0:00:13]} 50. Rf2 {[%clk 0:00:06]}  Re1+ {[%clk 0:00:11]} 51. Kd3 {[%clk 0:00:05]}  Re4 {[%clk 0:00:12]} 52. Rf1 {[%clk 0:00:04]}  Rxf4 {[%clk 0:00:11]} 53. Rg1+ {[%clk 0:00:05]}  Kh4 {[%clk 0:00:10]} 54. Ke3 {[%clk 0:00:05]}  Rg4 {[%clk 0:00:09]} 55. Rd1 {[%clk 0:00:04]}  Rg2 {[%clk 0:00:08]} 56. Kf3 {[%clk 0:00:04]}  Rxh2 {[%clk 0:00:03]} 57. Rd4+ {[%clk 0:00:05]}  Kg5 {[%clk 0:00:04]} 58. Rc4 {[%clk 0:00:05]}  Rxa2 {[%clk 0:00:04]} 59. Rc1 {[%clk 0:00:03]}  h2 {[%clk 0:00:04]} 60. Kg3 {[%clk 0:00:03]}  Rb2 {[%clk 0:00:04]} 61. Rf1 {[%clk 0:00:02]}  f4+ {[%clk 0:00:03]} 62. Kh3 {[%clk 0:00:02]}  Kf5 {[%clk 0:00:03]} 63. Re1 {[%clk 0:00:03]}  Rf2 {[%clk 0:00:02]} 64. Rd1 {[%clk 0:00:03]}  Ke4 {[%clk 0:00:03]} 65. Rc1 {[%clk 0:00:04]}  Kf3 {[%clk 0:00:03]} 66. Rc8 {[%clk 0:00:04]}  Ke4 {[%clk 0:00:04]} 67. Kh4 {[%clk 0:00:04]}  Kf3 {[%clk 0:00:05]} 68. Kg5 {[%clk 0:00:05]}  h1=Q {[%clk 0:00:05]} 69. Re8 {[%clk 0:00:06]}  Qg2+ {[%clk 0:00:06]} 70. Kf6 {[%clk 0:00:07]}  Kg4 {[%clk 0:00:07]} 71. Ke7 {[%clk 0:00:08]}  Re2+ {[%clk 0:00:08]} 72. Kd7 {[%clk 0:00:09]}  Rxe8 {[%clk 0:00:08]} 73. Kd6 {[%clk 0:00:08]}  Qe4 {[%clk 0:00:09]} 74. Kc7 {[%clk 0:00:09]}  Qc2+ {[%clk 0:00:10]} 75. Kb6 {[%clk 0:00:10]}  Qxb3 {[%clk 0:00:10]} 76. Ka5 {[%clk 0:00:11]}  Rb8 {[%clk 0:00:09]} 77. Ka6 {[%clk 0:00:11]}  Qa4# {[%clk 0:00:10]} 0-1


[Site "https://www.chess.com"]